[Event "Schack-SM 2022: Mastarklassen"]
[Site "Fyrishov, Idrottsgatan 2, Uppsala, Sweden"]
[Date "2022.07.10"]
[Round "9.4"]
[White "Malmstig, Erik"]
[Black "Landgren, Andreas"]
[Result "0-1"]
[TimeControl "90 minutes for 40 moves + 30 minutes for the rest of the game + 30 seconds per move from move one."]
[WhiteTitle "FM"]
[BlackTitle "FM"]
[WhiteFideId "1702866"]
[BlackFideId "1704311"]
[WhiteElo "2204"]
[BlackElo "2224"]

1. d4 {[%clk 01:30:55]} {[%emt 00:00:03]} Nf6 {[%clk 01:30:53]} {[%emt
00:00:08]} 2. c4 {[%clk 01:31:00]} {[%emt 00:00:25]} e6 {[%clk 01:31:16]}
{[%emt 00:00:07]} 3. Nc3 {[%clk 01:31:17]} {[%emt 00:00:13]} Bb4 {[%clk
01:31:40]} {[%emt 00:00:08]} 4. e3 {[%clk 01:31:24]} {[%emt 00:00:22]} O-O
{[%clk 01:32:02]} {[%emt 00:00:08]} 5. Bd3 {[%clk 01:31:06]} {[%emt 00:00:48]}
d5 {[%clk 01:32:23]} {[%emt 00:00:10]} 6. Nf3 {[%clk 01:30:45]} {[%emt
00:00:50]} c5 {[%clk 01:32:23]} {[%emt 00:00:30]} 7. a3 {[%clk 01:30:04]}
{[%emt 00:01:11]} Bxc3+ {[%clk 01:32:27]} {[%emt 00:00:27]} 8. bxc3 {[%clk
01:30:25]} {[%emt 00:00:09]} dxc4 {[%clk 01:24:24]} {[%emt 00:08:33]} 9. Bxc4
{[%clk 01:30:30]} {[%emt 00:00:25]} Qc7 {[%clk 01:20:27]} {[%emt 00:04:27]} 10.
Ba2 {[%clk 01:25:42]} {[%emt 00:05:17]} b6 {[%clk 01:04:38]} {[%emt 00:16:20]}
11. O-O {[%clk 01:23:34]} {[%emt 00:02:36]} Bb7 {[%clk 01:00:30]} {[%emt
00:04:40]} 12. Ne5 {[%clk 01:18:16]} {[%emt 00:05:46]} Nc6 {[%clk 00:52:06]}
{[%emt 00:08:55]} 13. Nf3 {[%clk 01:00:06]} {[%emt 00:18:39]} Rad8 {[%clk
00:48:54]} {[%emt 00:03:43]} 14. Bb2 {[%clk 00:55:37]} {[%emt 00:04:59]} e5
{[%clk 00:34:41]} {[%emt 00:14:43]} 15. Qc2 {[%clk 00:47:49]} {[%emt 00:08:17]}
Rd7 {[%clk 00:21:20]} {[%emt 00:13:52]} 16. Qf5 {[%clk 00:43:03]} {[%emt
00:05:14]} exd4 {[%clk 00:15:01]} {[%emt 00:06:50]} 17. cxd4 {[%clk 00:42:52]}
{[%emt 00:00:41]} Ne7 {[%clk 00:10:53]} {[%emt 00:04:39]} 18. Qh3 {[%clk
00:39:03]} {[%emt 00:04:18]} Ne4 {[%clk 00:08:32]} {[%emt 00:02:51]} 19. Rac1
{[%clk 00:34:07]} {[%emt 00:05:26]} Rd6 {[%clk 00:08:09]} {[%emt 00:00:54]} 20.
Ne5 {[%clk 00:24:34]} {[%emt 00:10:02]} Rh6 {[%clk 00:05:29]} {[%emt 00:03:11]}
21. Qg4 {[%clk 00:18:37]} {[%emt 00:06:27]} Ng6 {[%clk 00:04:29]} {[%emt
00:01:29]} 22. f3 {[%clk 00:11:23]} {[%emt 00:07:44]} Nxe5 {[%clk 00:03:21]}
{[%emt 00:01:39]} 23. dxe5 {[%clk 00:11:35]} {[%emt 00:00:17]} Rg6 {[%clk
00:03:21]} {[%emt 00:00:30]} 24. Qf4 {[%clk 00:10:05]} {[%emt 00:01:59]} Ng5
{[%emt 00:00:37]} 25. Kh1 {[%clk 00:09:45]} {[%emt 00:00:46]} Ne6 {[%clk
00:02:34]} {[%emt 00:01:15]} 26. Qc4 {[%clk 00:08:47]} {[%emt 00:01:28]} Qe7
{[%clk 00:02:13]} {[%emt 00:00:51]} 27. Bb1 {[%clk 00:07:08]} {[%emt 00:02:09]}
Rh6 {[%clk 00:02:35]} {[%emt 00:00:08]} 28. Rcd1 {[%clk 00:05:51]} {[%emt
00:01:47]} Qg5 {[%clk 00:02:35]} {[%emt 00:00:31]} 29. Rd7 {[%clk 00:04:47]}
{[%emt 00:01:34]} Qg3 {[%clk 00:02:24]} {[%emt 00:00:41]} 30. h3 {[%clk
00:04:09]} {[%emt 00:01:08]} Rxh3+ {[%clk 00:01:33]} {[%emt 00:01:20]} 31. Kg1
{[%clk 00:04:17]} {[%emt 00:00:22]} Qh2+ {[%clk 00:01:48]} {[%emt 00:00:16]} 32.
Kf2 {[%clk 00:04:33]} {[%emt 00:00:13]} Rxf3+ {[%clk 00:02:11]} {[%emt
00:00:07]} 33. Ke1 {[%clk 00:04:43]} {[%emt 00:00:20]} Rxf1+ {[%clk 00:01:45]}
{[%emt 00:00:56]} 34. Qxf1 {[%clk 00:04:57]} {[%emt 00:00:16]} Bxg2 {[%clk
00:01:56]} {[%emt 00:00:20]} 35. Qf5 {[%clk 00:04:47]} {[%emt 00:00:39]} g6
{[%clk 00:01:48]} {[%emt 00:00:39]} 36. Qc2 {[%clk 00:04:23]} {[%emt 00:00:53]}
Qg1+ {[%clk 00:01:45]} {[%emt 00:00:34]} 37. Kd2 {[%clk 00:04:42]} {[%emt
00:00:11]} Qf2+ {[%clk 00:02:04]} {[%emt 00:00:10]} 38. Kc1 {[%clk 00:03:13]}
{[%emt 00:01:59]} Qxe3+ {[%clk 00:01:59]} {[%emt 00:00:35]} 39. Qd2 {[%clk
00:03:19]} {[%emt 00:00:24]} Qg1+ {[%clk 00:02:00]} {[%emt 00:00:30]} 40. Qd1
{[%clk 00:03:15]} {[%emt 00:00:33]} Qxd1+ {[%clk 00:01:50]} {[%emt 00:00:40]}
41. Kxd1 {[%clk 00:02:53]} {[%emt 00:00:52]} Rd8 {[%clk 00:02:05]} {[%emt
00:00:16]} 42. Rd6 {[%clk 00:03:12]} {[%emt 00:00:11]} Kf8 {[%clk 00:01:35]}
{[%emt 00:00:59]} 43. Ba2 {[%clk 00:30:28]} {[%emt 00:03:15]} Ke7 {[%clk
00:31:24]} {[%emt 00:00:41]} 44. Bxe6 {[%clk 00:30:13]} {[%emt 00:00:44]} Rxd6+
{[%clk 00:31:35]} {[%emt 00:00:20]} 45. exd6+ {[%clk 00:30:36]} {[%emt
00:00:08]} Kxe6 {[%clk 00:31:58]} {[%emt 00:00:06]} 46. Be5 {[%clk 00:30:55]}
{[%emt 00:00:11]} Bc6 {[%clk 00:32:13]} {[%emt 00:00:16]} 47. Bh2 {[%clk
00:30:21]} {[%emt 00:01:03]} g5 {[%clk 00:30:31]} {[%emt 00:02:13]} 0-1

[Event "Schack-SM 2022: Mastarklassen"]
[Site "Fyrishov, Idrottsgatan 2, Uppsala, Sweden"]
[Date "2022.07.10"]
[Round "9.5"]
[White "Sundin, Emanuel"]
[Black "Johnson, Daniel"]
[Result "1/2-1/2"]
[TimeControl "90 minutes for 40 moves + 30 minutes for the rest of the game + 30 seconds per move from move one."]
[WhiteFideId "1719173"]
[BlackFideId "1721283"]
[WhiteElo "2160"]
[BlackElo "2191"]

1. e4 {[%clk 01:30:57]} {[%emt 00:00:02]} e5 {[%clk 01:21:37]} {[%emt
00:09:19]} 2. Nf3 {[%clk 01:31:00]} {[%emt 00:00:32]} Nc6 {[%clk 01:21:59]}
{[%emt 00:00:08]} 3. Bc4 {[%clk 01:30:48]} {[%emt 00:00:41]} Bc5 {[%clk
01:22:22]} {[%emt 00:00:08]} 4. c3 {[%clk 01:30:51]} {[%emt 00:00:27]} Nf6
{[%clk 01:22:15]} {[%emt 00:00:37]} 5. d4 {[%clk 01:30:20]} {[%emt 00:01:01]}
exd4 {[%clk 01:22:24]} {[%emt 00:00:21]} 6. e5 {[%clk 01:30:25]} {[%emt
00:00:25]} d5 {[%clk 01:22:11]} {[%emt 00:00:43]} 7. Bb5 {[%clk 01:30:32]}
{[%emt 00:00:23]} Ne4 {[%clk 01:22:17]} {[%emt 00:00:24]} 8. cxd4 {[%clk
01:30:37]} {[%emt 00:00:25]} Bb6 {[%clk 01:22:20]} {[%emt 00:00:26]} 9. Nc3
{[%clk 01:30:18]} {[%emt 00:00:49]} O-O {[%clk 01:21:49]} {[%emt 00:01:01]} 10.
Be3 {[%clk 01:29:56]} {[%emt 00:00:53]} Bg4 {[%clk 01:21:23]} {[%emt 00:00:56]}
11. h3 {[%clk 01:29:43]} {[%emt 00:00:43]} Bh5 {[%clk 01:16:47]} {[%emt
00:05:06]} 12. Qc2 {[%clk 01:25:29]} {[%emt 00:04:45]} Nxc3 {[%clk 01:06:51]}
{[%emt 00:10:26]} 13. bxc3 {[%clk 01:16:09]} {[%emt 00:09:50]} f6 {[%clk
01:04:08]} {[%emt 00:03:12]} 14. Bxc6 {[%clk 01:15:28]} {[%emt 00:01:12]} Bxf3
{[%clk 01:02:48]} {[%emt 00:01:49]} 15. gxf3 {[%clk 01:15:12]} {[%emt
00:00:46]} bxc6 {[%clk 01:03:10]} {[%emt 00:00:08]} 16. f4 {[%clk 01:14:53]}
{[%emt 00:00:49]} Qe7 {[%clk 01:02:56]} {[%emt 00:00:44]} 17. a4 {[%clk
00:56:46]} {[%emt 00:18:37]} a5 {[%clk 00:57:44]} {[%emt 00:05:41]} 18. Qa2
{[%clk 00:51:25]} {[%emt 00:05:51]} Rad8 {[%clk 00:52:56]} {[%emt 00:05:18]} 19.
Qa3 {[%clk 00:50:35]} {[%emt 00:01:21]} Qe6 {[%clk 00:51:04]} {[%emt 00:02:22]}
20. O-O-O {[%clk 00:47:50]} {[%emt 00:03:15]} Rb8 {[%clk 00:34:54]} {[%emt
00:16:40]} 21. h4 {[%clk 00:33:29]} {[%emt 00:14:52]} Rb7 {[%clk 00:33:06]}
{[%emt 00:02:18]} 22. h5 {[%clk 00:27:35]} {[%emt 00:06:23]} Rfb8 {[%clk
00:31:25]} {[%emt 00:02:11]} 23. Qa2 {[%clk 00:24:55]} {[%emt 00:03:10]} Ba7
{[%clk 00:28:55]} {[%emt 00:03:00]} 24. Qc2 {[%clk 00:23:41]} {[%emt 00:01:45]}
Qe7 {[%clk 00:28:15]} {[%emt 00:01:11]} 25. Qa2 {[%clk 00:21:00]} {[%emt
00:03:11]} Rb3 {[%clk 00:22:43]} {[%emt 00:06:01]} 26. Rhg1 {[%clk 00:19:16]}
{[%emt 00:02:14]} Rxc3+ {[%clk 00:13:15]} {[%emt 00:09:58]} 27. Kd2 {[%clk
00:19:38]} {[%emt 00:00:08]} Rcb3 {[%clk 00:13:07]} {[%emt 00:00:37]} 28. Ke1
{[%clk 00:18:10]} {[%emt 00:01:59]} Rb2 {[%clk 00:12:45]} {[%emt 00:00:52]} 29.
Qa1 {[%clk 00:17:48]} {[%emt 00:00:53]} fxe5 {[%clk 00:10:51]} {[%emt
00:02:24]} 30. h6 {[%clk 00:16:44]} {[%emt 00:01:34]} g6 {[%clk 00:10:01]}
{[%emt 00:01:19]} 31. fxe5 {[%clk 00:16:55]} {[%emt 00:00:19]} Qf7 {[%clk
00:09:28]} {[%emt 00:01:03]} 32. Rg3 {[%clk 00:15:52]} {[%emt 00:01:33]} Qf5
{[%clk 00:06:14]} {[%emt 00:03:44]} 33. Qc1 {[%clk 00:13:24]} {[%emt 00:02:58]}
Rb1 {[%clk 00:04:18]} {[%emt 00:02:26]} 34. Qxc6 {[%clk 00:13:00]} {[%emt
00:00:55]} Rxd1+ {[%clk 00:01:21]} {[%emt 00:03:27]} 35. Kxd1 {[%clk 00:13:29]}
{[%emt 00:00:01]} Qd3+ {[%clk 00:01:15]} {[%emt 00:00:35]} 36. Ke1 {[%clk
00:12:27]} {[%emt 00:01:32]} Qb1+ {[%clk 00:00:53]} {[%emt 00:00:52]} 37. Bc1
{[%clk 00:11:14]} {[%emt 00:01:43]} Qb4+ {[%clk 00:00:39]} {[%emt 00:00:43]} 38.
Bd2 {[%clk 00:10:26]} {[%emt 00:01:18]} Qb1+ {[%clk 00:00:49]} {[%emt
00:00:20]} 39. Bc1 {[%clk 00:10:56]} {[%emt 00:00:01]} Qb4+ {[%clk 00:00:39]}
{[%emt 00:00:39]} 40. Bd2 {[%clk 00:11:25]} {[%emt 00:00:01]} Qb1+ {[%clk
00:00:37]} {[%emt 00:00:32]} 1/2-1/2

[Event "Schack-SM 2022: Mastarklassen"]
[Site "Fyrishov, Idrottsgatan 2, Uppsala, Sweden"]
[Date "2022.07.09"]
[Round "8.1"]
[White "Mardell, Jimmy"]
[Black "Lind, Jan-Olov"]
[Result "0-1"]
[TimeControl "90 minutes for 40 moves + 30 minutes for the rest of the game + 30 seconds per move from move one."]
[WhiteFideId "1705610"]
[BlackFideId "1701193"]
[WhiteElo "2161"]
[BlackElo "2173"]

1. d4 {[%clk 01:30:57]} {[%emt 00:00:02]} Nf6 {[%clk 01:30:50]} {[%emt
00:00:10]} 2. c4 {[%clk 01:31:19]} {[%emt 00:00:08]} g6 {[%clk 01:31:15]}
{[%emt 00:00:05]} 3. Nc3 {[%clk 01:31:42]} {[%emt 00:00:08]} Bg7 {[%clk
01:31:40]} {[%emt 00:00:04]} 4. e4 {[%clk 01:32:03]} {[%emt 00:00:09]} d6
{[%clk 01:32:06]} {[%emt 00:00:04]} 5. Be2 {[%clk 01:32:24]} {[%emt 00:00:09]}
O-O {[%clk 01:31:38]} {[%emt 00:00:58]} 6. g4 {[%clk 01:32:47]} {[%emt
00:00:07]} c5 {[%clk 01:19:14]} {[%emt 00:12:54]} 7. d5 {[%clk 01:33:03]}
{[%emt 00:00:14]} e6 {[%clk 01:16:26]} {[%emt 00:03:17]} 8. g5 {[%clk
01:33:18]} {[%emt 00:00:16]} Ne8 {[%clk 01:15:35]} {[%emt 00:01:21]} 9. h4
{[%clk 01:32:53]} {[%emt 00:00:55]} Nc7 {[%clk 01:10:38]} {[%emt 00:05:27]} 10.
h5 {[%clk 01:27:00]} {[%emt 00:06:24]} exd5 {[%clk 01:10:11]} {[%emt 00:00:56]}
11. cxd5 {[%clk 01:25:46]} {[%emt 00:01:44]} b5 {[%clk 01:06:45]} {[%emt
00:03:56]} 12. hxg6 {[%clk 01:17:15]} {[%emt 00:09:01]} fxg6 {[%clk 01:06:00]}
{[%emt 00:01:15]} 13. Qc2 {[%clk 01:05:08]} {[%emt 00:12:37]} Qe8 {[%clk
00:57:34]} {[%emt 00:08:56]} 14. a4 {[%clk 00:49:18]} {[%emt 00:16:21]} b4
{[%clk 00:45:40]} {[%emt 00:12:23]} 15. Nb5 {[%clk 00:48:58]} {[%emt 00:00:49]}
Qf7 {[%clk 00:44:18]} {[%emt 00:01:51]} 16. Nxc7 {[%clk 00:42:53]} {[%emt
00:06:36]} Qxc7 {[%clk 00:44:08]} {[%emt 00:00:39]} 17. Bd2 {[%clk 00:35:48]}
{[%emt 00:07:36]} Qe7 {[%clk 00:40:56]} {[%emt 00:03:42]} 18. f3 {[%clk
00:24:17]} {[%emt 00:12:02]} Nd7 {[%clk 00:34:47]} {[%emt 00:06:39]} 19. O-O-O
{[%clk 00:24:11]} {[%emt 00:00:36]} b3 {[%clk 00:33:19]} {[%emt 00:01:57]} 20.
Qb1 {[%clk 00:21:07]} {[%emt 00:03:34]} Nb6 {[%clk 00:28:11]} {[%emt 00:05:39]}
21. Bc3 {[%clk 00:17:14]} {[%emt 00:04:24]} Bxc3 {[%clk 00:27:18]} {[%emt
00:01:23]} 22. bxc3 {[%clk 00:17:39]} {[%emt 00:00:05]} Qxg5+ {[%clk 00:27:29]}
{[%emt 00:00:19]} 0-1

[Event "Schack-SM 2022: Mastarklassen"]
[Site "Fyrishov, Idrottsgatan 2, Uppsala, Sweden"]
[Date "2022.07.09"]
[Round "8.2"]
[White "Landgren, Andreas"]
[Black "Crevatin, Leo"]
[Result "0-1"]
[TimeControl "90 minutes for 40 moves + 30 minutes for the rest of the game + 30 seconds per move from move one."]
[WhiteTitle "FM"]
[BlackTitle "CM"]
[WhiteFideId "1704311"]
[BlackFideId "1726307"]
[WhiteElo "2224"]
[BlackElo "2259"]

1. e4 {[%clk 01:30:57]} {[%emt 00:00:02]} c6 {[%clk 01:29:38]} {[%emt
00:01:19]} 2. d4 {[%clk 01:31:21]} {[%emt 00:00:09]} d5 {[%clk 01:29:42]}
{[%emt 00:00:26]} 3. e5 {[%clk 01:31:44]} {[%emt 00:00:08]} Bf5 {[%clk
01:30:07]} {[%emt 00:00:05]} 4. h4 {[%clk 01:32:08]} {[%emt 00:00:05]} h5
{[%clk 01:30:34]} {[%emt 00:00:03]} 5. Bd3 {[%clk 01:32:32]} {[%emt 00:00:06]}
Bxd3 {[%clk 01:30:57]} {[%emt 00:00:07]} 6. Qxd3 {[%clk 01:32:59]} {[%emt
00:00:04]} Qa5+ {[%clk 01:31:15]} {[%emt 00:00:12]} 7. Nd2 {[%clk 01:25:34]}
{[%emt 00:07:55]} e6 {[%clk 01:31:25]} {[%emt 00:00:20]} 8. Ngf3 {[%clk
01:20:16]} {[%emt 00:05:48]} Ne7 {[%clk 01:31:05]} {[%emt 00:00:50]} 9. O-O
{[%clk 01:08:08]} {[%emt 00:12:38]} Nf5 {[%clk 01:31:22]} {[%emt 00:00:13]} 10.
b3 {[%clk 00:48:42]} {[%emt 00:19:56]} Qa6 {[%clk 01:25:41]} {[%emt 00:06:10]}
11. c4 {[%clk 00:48:56]} {[%emt 00:00:16]} Be7 {[%clk 01:21:15]} {[%emt
00:04:56]} 12. g3 {[%clk 00:48:02]} {[%emt 00:01:24]} O-O {[%clk 01:02:40]}
{[%emt 00:19:05]} 13. Rd1 {[%clk 00:36:26]} {[%emt 00:12:06]} Rd8 {[%clk
00:56:34]} {[%emt 00:06:36]} 14. Qc2 {[%clk 00:33:33]} {[%emt 00:03:23]} c5
{[%clk 00:49:43]} {[%emt 00:07:21]} 15. dxc5 {[%clk 00:30:42]} {[%emt
00:03:21]} Nc6 {[%clk 00:44:05]} {[%emt 00:06:08]} 16. cxd5 {[%clk 00:28:42]}
{[%emt 00:02:31]} Rxd5 {[%clk 00:44:07]} {[%emt 00:00:27]} 17. Bb2 {[%clk
00:22:50]} {[%emt 00:06:22]} Nb4 {[%clk 00:36:15]} {[%emt 00:08:22]} 18. Qc4
{[%clk 00:21:17]} {[%emt 00:02:03]} Qxc4 {[%clk 00:35:24]} {[%emt 00:01:21]} 19.
Nxc4 {[%clk 00:21:17]} {[%emt 00:00:30]} Bxc5 {[%clk 00:34:33]} {[%emt
00:01:22]} 20. Kg2 {[%clk 00:11:36]} {[%emt 00:10:11]} Nd3 {[%clk 00:26:11]}
{[%emt 00:08:52]} 21. Rd2 {[%clk 00:11:00]} {[%emt 00:01:05]} b5 {[%clk
00:25:05]} {[%emt 00:01:36]} 22. Nd6 {[%clk 00:09:17]} {[%emt 00:02:13]} Nxd6
{[%clk 00:24:16]} {[%emt 00:01:18]} 23. exd6 {[%clk 00:09:37]} {[%emt
00:00:11]} Bb4 {[%clk 00:23:53]} {[%emt 00:00:53]} 24. Rc2 {[%clk 00:08:24]}
{[%emt 00:01:44]} Nxb2 {[%clk 00:22:47]} {[%emt 00:01:36]} 25. a3 {[%clk
00:08:49]} {[%emt 00:00:05]} Ba5 {[%clk 00:20:53]} {[%emt 00:02:23]} 26. b4
{[%clk 00:09:02]} {[%emt 00:00:17]} Bd8 {[%clk 00:21:16]} {[%emt 00:00:07]} 27.
Rac1 {[%clk 00:08:46]} {[%emt 00:00:45]} Nc4 {[%clk 00:21:19]} {[%emt
00:00:27]} 0-1

[Event "Schack-SM 2022: Mastarklassen"]
[Site "Fyrishov, Idrottsgatan 2, Uppsala, Sweden"]
[Date "2022.07.09"]
[Round "8.3"]
[White "Johnson, Daniel"]
[Black "Malmstig, Erik"]
[Result "1/2-1/2"]
[TimeControl "90 minutes for 40 moves + 30 minutes for the rest of the game + 30 seconds per move from move one."]
[BlackTitle "FM"]
[WhiteFideId "1721283"]
[BlackFideId "1702866"]
[WhiteElo "2191"]
[BlackElo "2204"]

1. d4 {[%clk 01:29:14]} {[%emt 00:01:39]} Nf6 {[%clk 01:30:51]} {[%emt
00:00:14]} 2. Nc3 {[%clk 01:29:05]} {[%emt 00:00:39]} c5 {[%clk 01:29:25]}
{[%emt 00:01:56]} 3. d5 {[%clk 01:29:08]} {[%emt 00:00:26]} d6 {[%clk
01:29:06]} {[%emt 00:00:50]} 4. e4 {[%clk 01:29:20]} {[%emt 00:00:17]} g6
{[%clk 01:29:06]} {[%emt 00:00:29]} 5. Bc4 {[%clk 01:28:13]} {[%emt 00:01:38]}
Bg7 {[%clk 01:29:06]} {[%emt 00:00:30]} 6. Nf3 {[%clk 01:27:39]} {[%emt
00:01:05]} Bg4 {[%clk 01:26:35]} {[%emt 00:03:01]} 7. h3 {[%clk 01:27:16]}
{[%emt 00:00:53]} Bxf3 {[%clk 01:26:51]} {[%emt 00:00:14]} 8. Qxf3 {[%clk
01:27:39]} {[%emt 00:00:06]} Nbd7 {[%clk 01:27:00]} {[%emt 00:00:21]} 9. Be2
{[%clk 01:26:32]} {[%emt 00:01:37]} a6 {[%clk 01:21:51]} {[%emt 00:05:40]} 10.
a4 {[%clk 01:25:45]} {[%emt 00:01:16]} Qc7 {[%clk 01:19:31]} {[%emt 00:02:51]}
11. O-O {[%clk 01:25:43]} {[%emt 00:00:32]} O-O {[%clk 01:19:26]} {[%emt
00:00:34]} 12. Bg5 {[%clk 01:08:37]} {[%emt 00:17:36]} Rae8 {[%clk 01:11:40]}
{[%emt 00:08:17]} 13. Rad1 {[%clk 00:59:48]} {[%emt 00:09:19]} Kh8 {[%clk
01:11:00]} {[%emt 00:01:10]} 14. Qg3 {[%clk 00:59:04]} {[%emt 00:01:13]} Ng8
{[%clk 01:10:42]} {[%emt 00:00:48]} 15. Rfe1 {[%clk 00:57:06]} {[%emt
00:02:27]} Ne5 {[%clk 01:07:47]} {[%emt 00:03:26]} 16. Bc1 {[%clk 00:55:25]}
{[%emt 00:02:11]} Nd7 {[%clk 01:04:03]} {[%emt 00:04:14]} 17. h4 {[%clk
00:50:52]} {[%emt 00:05:02]} h5 {[%clk 00:56:42]} {[%emt 00:07:51]} 18. b3
{[%clk 00:40:13]} {[%emt 00:11:09]} Nh6 {[%clk 00:55:05]} {[%emt 00:02:07]} 19.
Bb2 {[%clk 00:31:39]} {[%emt 00:09:04]} Ne5 {[%clk 00:53:42]} {[%emt 00:01:52]}
20. Nb1 {[%clk 00:29:52]} {[%emt 00:02:17]} Rb8 {[%clk 00:43:39]} {[%emt
00:10:34]} 21. f4 {[%clk 00:24:15]} {[%emt 00:06:07]} Neg4 {[%clk 00:42:28]}
{[%emt 00:01:42]} 22. Bxg7+ {[%clk 00:24:02]} {[%emt 00:00:43]} Kxg7 {[%clk
00:42:48]} {[%emt 00:00:09]} 23. Qc3+ {[%clk 00:23:39]} {[%emt 00:00:54]} Kg8
{[%clk 00:38:53]} {[%emt 00:04:23]} 24. Nd2 {[%clk 00:22:38]} {[%emt 00:01:31]}
b5 {[%clk 00:38:17]} {[%emt 00:01:08]} 25. axb5 {[%clk 00:22:50]} {[%emt
00:00:19]} axb5 {[%clk 00:38:38]} {[%emt 00:00:08]} 26. Bxg4 {[%clk 00:16:21]}
{[%emt 00:06:58]} Nxg4 {[%clk 00:36:11]} {[%emt 00:02:57]} 27. e5 {[%clk
00:16:27]} {[%emt 00:00:24]} c4 {[%clk 00:27:02]} {[%emt 00:09:39]} 28. Nf3
{[%clk 00:15:39]} {[%emt 00:01:18]} Qc5+ {[%clk 00:25:28]} {[%emt 00:02:04]} 29.
Qd4 {[%clk 00:15:16]} {[%emt 00:00:53]} Rfc8 {[%clk 00:24:42]} {[%emt
00:01:16]} 30. Ra1 {[%clk 00:15:20]} {[%emt 00:00:25]} Rb7 {[%clk 00:21:17]}
{[%emt 00:03:56]} 31. Ra6 {[%clk 00:14:38]} {[%emt 00:01:12]} cxb3 {[%clk
00:18:25]} {[%emt 00:03:22]} 32. cxb3 {[%clk 00:14:36]} {[%emt 00:00:32]} dxe5
{[%clk 00:15:53]} {[%emt 00:03:02]} 33. fxe5 {[%clk 00:13:26]} {[%emt
00:01:39]} Qxd4+ {[%clk 00:15:51]} {[%emt 00:00:33]} 34. Nxd4 {[%clk 00:13:47]}
{[%emt 00:00:08]} Rc5 {[%clk 00:16:05]} {[%emt 00:00:16]} 35. e6 {[%clk
00:06:31]} {[%emt 00:07:47]} Rxd5 {[%clk 00:15:12]} {[%emt 00:01:23]} 36. Ra8+
{[%clk 00:06:24]} {[%emt 00:00:36]} Kg7 {[%clk 00:14:25]} {[%emt 00:01:17]} 37.
exf7 {[%clk 00:06:47]} {[%emt 00:00:08]} Kxf7 {[%clk 00:14:01]} {[%emt
00:00:54]} 38. Ne6 {[%clk 00:06:43]} {[%emt 00:00:33]} Ne5 {[%clk 00:11:31]}
{[%emt 00:02:59]} 39. Rxe5 {[%clk 00:03:40]} {[%emt 00:03:34]} Rxe5 {[%clk
00:11:20]} {[%emt 00:00:42]} 40. Nd8+ {[%clk 00:03:56]} {[%emt 00:00:14]} Kf6
{[%clk 00:10:52]} {[%emt 00:00:57]} 41. Nxb7 {[%clk 00:04:18]} {[%emt
00:00:08]} Re4 {[%clk 00:10:33]} {[%emt 00:00:49]} 42. Ra6+ {[%clk 00:21:59]}
{[%emt 00:12:49]} Kf5 {[%clk 00:35:02]} {[%emt 00:06:01]} 43. Rb6 {[%clk
00:20:02]} {[%emt 00:02:26]} b4 {[%clk 00:25:28]} {[%emt 00:10:05]} 44. Rb5+
{[%clk 00:13:49]} {[%emt 00:06:42]} Kf6 {[%clk 00:25:19]} {[%emt 00:00:40]} 45.
Nc5 {[%clk 00:09:10]} {[%emt 00:05:10]} Rxh4 {[%clk 00:25:05]} {[%emt
00:00:43]} 46. Na6 {[%clk 00:08:36]} {[%emt 00:01:04]} Rd4 {[%clk 00:23:58]}
{[%emt 00:01:37]} 47. Rxb4 {[%clk 00:07:08]} {[%emt 00:01:59]} Rd1+ {[%clk
00:22:27]} {[%emt 00:02:01]} 48. Kf2 {[%clk 00:07:05]} {[%emt 00:00:32]} Rd2+
{[%clk 00:22:30]} {[%emt 00:00:26]} 49. Kf3 {[%clk 00:07:29]} {[%emt 00:00:07]}
Rd3+ {[%clk 00:20:02]} {[%emt 00:02:58]} 50. Ke2 {[%clk 00:07:42]} {[%emt
00:00:16]} Rg3 {[%clk 00:20:23]} {[%emt 00:00:09]} 51. Kf2 {[%clk 00:07:58]}
{[%emt 00:00:14]} Rc3 {[%clk 00:20:47]} {[%emt 00:00:06]} 52. Rb6+ {[%clk
00:07:57]} {[%emt 00:00:31]} Kf5 {[%clk 00:20:55]} {[%emt 00:00:22]} 53. b4
{[%clk 00:03:12]} {[%emt 00:05:15]} g5 {[%clk 00:19:14]} {[%emt 00:02:10]} 54.
b5 {[%clk 00:01:52]} {[%emt 00:01:50]} h4 {[%clk 00:17:30]} {[%emt 00:02:14]}
55. Rc6 {[%clk 00:02:02]} {[%emt 00:00:21]} Rb3 {[%clk 00:17:31]} {[%emt
00:00:28]} 56. b6 {[%clk 00:01:14]} {[%emt 00:01:18]} g4 {[%clk 00:16:58]}
{[%emt 00:01:03]} 57. Nc5 {[%clk 00:00:51]} {[%emt 00:00:53]} g3+ {[%clk
00:16:28]} {[%emt 00:01:00]} 58. Ke2 {[%clk 00:00:41]} {[%emt 00:00:35]} Rb2+
{[%clk 00:16:17]} {[%emt 00:00:46]} 59. Kf1 {[%clk 00:00:35]} {[%emt 00:00:36]}
Rf2+ {[%clk 00:14:40]} {[%emt 00:02:07]} 60. Kg1 {[%clk 00:00:49]} {[%emt
00:00:16]} Rc2 {[%clk 00:14:09]} {[%emt 00:01:00]} 61. Kf1 {[%clk 00:01:12]}
{[%emt 00:00:07]} Rf2+ {[%clk 00:13:28]} {[%emt 00:01:10]} 62. Kg1 {[%clk
00:01:33]} {[%emt 00:00:09]} Rc2 {[%clk 00:13:42]} {[%emt 00:00:15]} 63. Kf1
{[%clk 00:01:05]} {[%emt 00:01:00]} Ke5 1/2-1/2